Cogmind - Beta 9.1 @@@ ROGUE MODE // 2019.10.30 @ 09:57:03 Player: MrPainting Result: Self-destructed Performance ------------- Evolutions (2) 1000 Regions Visited (4) 800 Robots Destroyed (25) 125 Value Destroyed (583) 583 Prototype IDs (2) 40 Alien Tech Used (0) 0 Bonus (0) 0 TOTAL SCORE: 2548 Bonus ------- None Cogmind --------- Core Integrity 441/550 Matter 77/300 Energy 265/265 System Corruption 1% Temperature Cool (0) Location -8/Materials Parts ------- Power (1) Improved Ion Engine Propulsion (4) Light Treads Light Treads Utility (4) Large Storage Unit Large Storage Unit Hacking Suite Weapon (2) High-powered Shotgun Inventory (16) Light Nuclear Core Heat Sink Compact Matter Pod (0) Compact Matter Pod (0) Sensor Array Signal Interpreter Recoil Stabilizer ECM Suite Improved Light Armor Plating Tractor Beam Particle Cannon Improved Assault Rifle Improved Assault Rifle EMP Blaster EMP Blaster Peak State ------------ Power Improved Ion Engine Propulsion Light Treads Light Treads Light Treads Light Treads Utility Large Storage Unit Large Storage Unit Improved Light Armor Plating Hacking Suite Weapon Improved Assault Rifle EMP Blaster Inventory Light Nuclear Core Heat Sink Medium Matter Pod Compact Matter Pod Sensor Array Signal Interpreter Terrain Scanner Recoil Stabilizer ECM Suite Medium Armor Plating Particle Cannon Improved Assault Rifle High-powered Shotgun High-powered Shotgun EMP Blaster [Rating: 22] Favorites ----------- Power Improved Ion Engine Engine Improved Ion Engine Propulsion Light Treads Treads Light Treads Leg Aluminum Leg Utility Large Storage Unit Device Heat Sink Storage Large Storage Unit Hackware Hacking Suite Protection Medium Armor Plating Weapon Improved Assault Rifle Energy Gun Medium Laser Energy Cannon Particle Cannon Ballistic Gun Improved Assault Rifle Launcher EMP Blaster Build | -11 -10 -9 -9 -8 ------- Run | Scr Mat Mat Min Mat Slots Evolved 4 | . . 2 . 2 Power . | . . . . . Propulsion 2 | . . 2 . . Utility 2 | . . . . 2 Weapon . | . . . . . Parts Attached 30 | 6 10 8 . 6 Power 3 | 1 1 1 . . Engine 3 | 1 1 1 . . Core . | . . . . . Reactor . | . . . . . Propulsion 6 | 2 2 2 . . Treads 4 | . 2 2 . . Leg 2 | 2 . . . . Wheel . | . . . . . Hover . | . . . . . Flight . | . . . . . Utility 9 | 1 5 . . 3 Device 1 | . 1 . . . Storage 4 | 1 3 . . . Processor . | . . . . . Hackware 1 | . . . . 1 Protection 3 | . 1 . . 2 Artifact . | . . . . . Weapon 12 | 2 2 5 . 3 Energy Gun 3 | 2 . 1 . . Energy Cannon 1 | . . 1 . . Ballistic Gun 7 | . 2 3 . 2 Ballistic Cannon . | . . . . . Launcher 1 | . . . . 1 Special Weapon . | . . . . . Impact Weapon . | . . . . . Slashing Weapon . | . . . . . Piercing Weapon . | . . . . . Special Melee Weapon . | . . . . . Unidentified Prototypes 2 | . . 2 . . Parts Lost 5 | . 1 . . 4 Power . | . . . . . Propulsion 2 | . . . . 2 Utility 1 | . . . . 1 Weapon 2 | . 1 . . 1 Highest Loss Streak 4 | . 1 . . 4 Average Slot Usage (%) 93 | . 95 81 100 90 Engine 11 | . 14 11 11 9 Treads 30 | . 18 26 44 34 Leg 2 | . 9 . . . Storage 18 | . 12 22 22 18 Protection 4 | . 10 . . 5 Energy Gun 5 | . 18 . . . Ballistic Gun 15 | . 8 17 22 14 Naked Turns . | . . . . . Heaviest Build 53 | 11 41 46 45 53 Greatest Support 80 | 20 40 80 80 80 Greatest Overweight (x) 2 | 2 1 1 . . Average Overweight (x) . | . . . . . Largest Inventory Capacity 16 | 6 16 16 16 16 Average Capacity 13 | 5 7 16 16 16 Most Carried 16 | 5 16 16 15 16 Average Carried 11 | 3 5 15 14 15 Final Capacity 16 | 6 16 16 16 16 Final Carried 16 | 4 16 14 15 15 Class Distribution -------------------- 100% | Mutant Dominant Class ---------------- Mutant | -10/Materials Mutant | -9/Materials Mutant | -9/Mines Mutant | -8/Materials Resources | -11 -10 -9 -9 -8 ----------- Run | Scr Mat Mat Min Mat Matter Collected 594 | 185 140 47 155 67 Remotely . | . . . . . Salvage Created 782 | . 226 97 200 259 Parts 50 | . 20 5 11 14 Haulers Intercepted 3 | . 1 1 . 1 Recyclers Shooed 3 | . . 2 . 1 Parts Field Recycled . | . . . . . Retrieved Matter . | . . . . . Parts Self-Destructed . | . . . . . Prevented . | . . . . . Kills | -11 -10 -9 -9 -8 ------- Run | Scr Mat Mat Min Mat Combat Hostiles Destroyed 17 | . 6 1 6 4 Guns 17 | . 6 1 6 4 Classes Destroyed 9 | . 5 . 1 3 Worker 1 | . . . . 1 Builder 1 | . 1 . . . Tunneler 1 | . . . 1 . Hauler 3 | . 1 1 . 1 Operator 1 | . 1 . . . Watcher 1 | . . . . 1 Swarmer 7 | . 4 . 3 . Grunt 9 | . 2 1 3 3 Hunter 1 | . . . . 1 Best Kill Streak 5 | . 5 1 3 4 Combat Bots Only 4 | . 4 1 3 3 Max Kills in Single Turn 2 | . 1 1 2 2 Gunslinging 1 | . . . 1 . Exploded . | . . . . . Melee . | . . . . . Uniques/NPCs Destroyed . | . . . . . Combat | -11 -10 -9 -9 -8 -------- Run | Scr Mat Mat Min Mat Damage Taken 1271 | . 327 10 214 720 Core 152 | . 33 10 . 109 Absorbed by Shields . | . . . . . Core Remaining (%) 94 | 100 86 . 97 . Volleys Fired 73 | . 22 11 16 24 Largest 2 | . 2 2 2 2 Hottest 90 | . 90 88 46 56 Shots Fired 139 | . 37 22 32 48 Gun 131 | . 37 21 32 41 Cannon 1 | . . 1 . . Launcher 7 | . . . . 7 Special . | . . . . . Kinetic 96 | . 2 21 32 41 Thermal 22 | . 21 1 . . Explosive . | . . . . . Electromagnetic 21 | . 14 . . 7 Robot Hit Streak 18 | . 9 17 18 15 Robot Miss Streak 4 | . 2 1 1 4 Penetration Max . | . . . . . Secondary Targets 4 | . 1 . 2 1 Max Gunslinging Chain 1 | . 1 . 1 1 Shots Hit Robots 112 | . 24 20 25 43 Core Hits 42 | . 13 4 8 17 Critical Hits 1 | . . . . 1 Critical Kills 1 | . . . . 1 Critical Parts Destroyed . | . . . . . Melee Attacks . | . . . . . Impact . | . . . . . Slashing . | . . . . . Piercing . | . . . . . Sneak Attacks . | . . . . . Combat Hostiles . | . . . . . Follow-up Attacks . | . . . . . Damage Inflicted 1656 | . 292 285 389 690 Guns 1400 | . 292 265 389 454 Cannons 20 | . . 20 . . Explosions 236 | . . . . 236 Melee . | . . . . . Ramming . | . . . . . Kinetic 1118 | . 10 265 389 454 Thermal 222 | . 202 20 . . Explosive . | . . . . . Electromagnetic 316 | . 80 . . 236 Impact . | . . . . . Slashing . | . . . . . Piercing . | . . . . . Highest Corruption 1 | . . 1 1 1 Average Corruption 1 | . . 1 1 1 Corruption Purged . | . . . . . Effects 5 | . . 1 4 . Message Errors 1 | . . . 1 . Energy Discharges 3 | . . 1 2 . Targeting Errors 1 | . . . 1 . Overload Shots . | . . . . . Overflow Damage 34 | . . . . 34 Projectiles . | . . . . . Explosions 34 | . . . . 34 Melee . | . . . . . Knockbacks . | . . . . . Impact . | . . . . . Kinetic . | . . . . . Secondary . | . . . . . Self-Inflicted Damage 81 | . . . . 81 Shots 7 | . . . . 7 Rammed . | . . . . . Targets Rammed . | . . . . . Kicked . | . . . . . Crushed . | . . . . . Highest Temperature 384 | . 384 44 7 12 Average Temperature 119 | . 141 22 4 4 Received Heat Transfer 234 | . 48 6 63 117 Effects 1 | . 1 . . . Shutdowns 1 | . 1 . . . Siege Activations . | . . . . . Robots Corrupted . | . . . . . Combat Hostiles . | . . . . . Parts Fried 1 | . . . . 1 Impact Corruptions . | . . . . . Robots Melted . | . . . . . Combat Hostiles . | . . . . . Parts Melted . | . . . . . Heat Transferred 629 | . 592 37 . . Parts Sabotaged . | . . . . . Parts Stolen . | . . . . . Parts Stripped . | . . . . . Power Chain Reactions . | . . . . . Missiles Intercepted . | . . . . . Alert | -11 -10 -9 -9 -8 ------- Run | Scr Mat Mat Min Mat Peak Influence 201 | . 201 69 171 174 Average Influence 50 | . 53 40 55 61 Maximum Alert Level 1 | . 1 . . . Low Security (%) 98 | . . . . . Level 1 1 | . . . . . Level 2 . | . . . . . Level 3 . | . . . . . Level 4 . | . . . . . Level 5 . | . . . . . High Security . | . . . . . Max Security . | . . . . . Squads Dispatched 5 | . 1 1 . 3 Investigation 1 | . . 1 . . Extermination . | . . . . . Reinforcement 4 | . 1 . . 3 Assault . | . . . . . Garrison . | . . . . . Intercept . | . . . . . Construction Impeded . | . . . . . Haulers Reinforced . | . . . . . Stealth | -11 -10 -9 -9 -8 --------- Run | Scr Mat Mat Min Mat Distress Signals 3 | . 1 . . 2 Communications Jammed . | . . . . . Distress Signals . | . . . . . Times Spotted 40 | . 12 3 11 14 Peak Tracking Total 12 | . 6 1 12 10 Tactical Retreats 3 | . 2 . 1 . Traps | -11 -10 -9 -9 -8 ------- Run | Scr Mat Mat Min Mat Traps Triggered . | . . . . . Indirectly . | . . . . . Trap Hack Attempts . | . . . . . Triggered . | . . . . . Disarmed . | . . . . . Reprogrammed . | . . . . . Reused . | . . . . . Traps Extracted . | . . . . . Installed . | . . . . . Triggered . | . . . . . Machines | -11 -10 -9 -9 -8 ---------- Run | Scr Mat Mat Min Mat Machines Disabled 4 | . 1 . . 3 Max in Single Turn 2 | . 1 . . 2 Machines Sabotaged . | . . . . . Garrisons Compromised . | . . . . . Overloaded Fab Kills . | . . . . . Fab Network Shutdowns . | . . . . . Hacking | -11 -10 -9 -9 -8 --------- Run | Scr Mat Mat Min Mat Machines Accessed 5 | . 2 3 . . Terminals 4 | . 2 2 . . Fabricators . | . . . . . Repair Stations . | . . . . . Recycling Units . | . . . . . Scanalyzers 1 | . . 1 . . Garrison Access . | . . . . . Total Hacks 14 | . 5 9 . . Successful 12 | . 5 7 . . Failed 2 | . . 2 . . Catastrophic 1 | . . 1 . . Database Lockouts . | . . . . . Manual 9 | . 5 4 . . Terminals 12 | . 5 7 . . Fabricators . | . . . . . Repair Stations . | . . . . . Recycling Units . | . . . . . Scanalyzers 2 | . . 2 . . Garrison Access . | . . . . . Terminal Hacks 3 | . . 3 . . Alert Level 1 | . . 1 . . Patrol Status 1 | . . 1 . . Transport Status 1 | . . 1 . . Fabricator Hacks . | . . . . . Repair Station Hacks . | . . . . . Recycling Unit Hacks . | . . . . . Scanalyzer 2 | . . 2 . . Insert Component 1 | . . 1 . . Analyze 1 | . . 1 . . Garrison Access Hacks . | . . . . . Unauthorized Hacks 16 | . 10 6 . . Terminals 7 | . 5 2 . . Track 3 | . 2 1 . . Assimilate 1 | . 1 . . . Botnet 3 | . 2 1 . . Fabricators . | . . . . . Repair Stations . | . . . . . Recycling Units . | . . . . . Scanalyzers . | . . . . . Garrison Access . | . . . . . Data Cores Recovered . | . . . . . Used . | . . . . . Hacking Detections 2 | . 1 1 . . Full Trace Events 1 | . . 1 . . Feedback Events 1 | . . 1 . . Corruption 1 | . . 1 . . Feedback Blocked . | . . . . . Robot Schematics Acquired . | . . . . . Robots Built . | . . . . . Matter . | . . . . . Time . | . . . . . Total Robot Build Rating . | . . . . . Part Schematics Acquired 1 | . . 1 . . Parts Built . | . . . . . Matter . | . . . . . Time . | . . . . . Total Part Build Rating . | . . . . . Parts Repaired . | . . . . . Time . | . . . . . Parts Recycled . | . . . . . Recycled Matter . | . . . . . Retrieved Matter . | . . . . . Retrieved Components . | . . . . . Parts Scanalyzed 1 | . . 1 . . Part Schematics Acquired 1 | . . 1 . . Parts Damaged . | . . . . . Bothacking | -11 -10 -9 -9 -8 ------------ Run | Scr Mat Mat Min Mat Used RIF Installer . | . . . . . Robots Hacked . | . . . . . Non-combat . | . . . . . Combat . | . . . . . Robot Hacks Applied . | . . . . . Relay Couplers Released . | . . . . . Robots Rewired . | . . . . . Allies Hacked . | . . . . . Hacks Repelled . | . . . . . Allies | -11 -10 -9 -9 -8 -------- Run | Scr Mat Mat Min Mat Total Allies . | . . . . . Largest Group . | . . . . . Highest-Rated Group . | . . . . . Highest-Rated Ally . | . . . . . Total Orders . | . . . . . Ally Attacks . | . . . . . Total Damage . | . . . . . Kills . | . . . . . Allies Corrupted . | . . . . . Allies Melted . | . . . . . Intel | -11 -10 -9 -9 -8 ------- Run | Scr Mat Mat Min Mat Robot Analysis Total . | . . . . . Derelict Logs Recovered 1 | . . . 1 . Drone Launches . | . . . . . Drone Recoveries . | . . . . . Exploration | -11 -10 -9 -9 -8 ------------- Run | Scr Mat Mat Min Mat Turns Passed 1872 | 84 557 361 589 281 Spaces Moved 909 | 59 247 164 323 116 Core 26 | 26 . . . . Treads 791 | . 188 164 323 116 Legs 92 | 33 59 . . . Wheels . | . . . . . Hover . | . . . . . Flight . | . . . . . Fastest Speed 50 | 50 120 160 160 160 Average Speed 158 | 117 154 176 160 160 Slowest Speed 180 | 150 180 180 160 160 Overloaded Moves . | . . . . . Propulsion Burnouts . | . . . . . Robots Hopped . | . . . . . Cave-ins Triggered . | . . . . . Exploration Rate (%) 34 | 5 47 19 83 19 Regions Visited 4 Branch Regions 1 Pre-discovered Areas . | . . . . . Known Exits Taken . | . . . . . Unknown Exits Taken 4 | 1 1 1 1 . Scrap Searched 1 | . . . 1 . Spaces Dug . | . . . . . Terrain Destroyed . | . . . . . Melee . | . . . . . Projectile . | . . . . . AOE . | . . . . . Actions | -11 -10 -9 -9 -8 --------- Run | Scr Mat Mat Min Mat Total 1204 | 73 387 219 363 162 Wait 110 | . 75 4 24 7 Move 905 | 58 246 163 322 116 Hop . | . . . . . Pick Up 53 | 9 24 14 1 5 Fast Attach 7 | 1 . 5 . 1 Attach 9 | 5 3 . . 1 Detach . | . . . . . Swap 14 | . 7 3 . 4 Drop 33 | . 10 19 . 4 Fire 73 | . 22 11 16 24 Melee . | . . . . . Ram . | . . . . . Kick . | . . . . . Crush . | . . . . . Escape Stasis . | . . . . . Rewire . | . . . . . Trap . | . . . . . Miscellaneous . | . . . . . Route ------- -11/Scrapyard -10/Materials (discovered 2 exits: *Mat x2) -9/Materials -9/Mines -8/Materials (discovered 2 exits: Fac / Sto) History --------- Turn | Location | Event 13 | -11/Scrapyard | Discovered new exit (range 15) 85 | -11/Scrapyard | Entered Materials 304 | -10/Materials | Build established: Mutant 364 | -10/Materials | Discovered new exit (range 7) 580 | -10/Materials | Discovered new exit (range 9) 642 | -10/Materials | Entered another Materials area 642 | -9/Materials | Evolved 2 slots: Propulsion x2 967 | -9/Materials | Discovered new exit (range 15) 1003 | -9/Materials | Entered Mines 1162 | -9/Mines | Learned location of 2 exits from Materials 1577 | -9/Mines | Discovered new exit (range 8) 1588 | -9/Mines | Assembled infested the area 1592 | -9/Mines | Entered Materials 1592 | -8/Materials | Evolved 2 slots: Utility x2 1593 | -8/Materials | Identified exit to Factory 1593 | -8/Materials | Identified exit to Storage 1873 | -8/Materials | Self-destructed Last Messages --------------- 01843_ Slug penetrates Wall. 01845_ K-01 Serf collects debris. 01853_ Slug penetrates Wall. 01853_ Lgt. Treads destroyed. 01856_ W-25 Informer sends out distress signal. 01856_ K-01 Serf collects debris. 01856_ Penetrated by Slug. 01857_ U-05 Engineer lays Concrete. 01861_ H-55 Commando destroyed. 01862_ Penetrated by Slug. 01863_ R-06 Scavenger collects Lgt. Nuclear Core. 01865_ U-05 Engineer lays Concrete. 01865_ Penetrated by Slug. 01865_ Med. Armor Plating destroyed. 01866_ Penetrated by Slug. 01867_ U-05 Engineer lays Concrete. 01868_ K-01 Serf collects debris. 01872_ U-05 Engineer lays Concrete. 01872_ Penetrated by Slug. 01872_ Hpw. Shotgun destroyed. Map ----- +----------------------------------------------------+ | #! #??# # #????????????????????????????? | | # = #??# # """#????????????????????????????? | | / #??# + """#????????????????????????????? | | # #??# # ! """#????????????????????????????? | | # #??# # #????????????????????????????? | | ?/ #??# #########????????????????????????????? | | ### ##??# #########????????????????????????????? | | ??#/#???# # #????????????????????????????? | | ?? ???# # """ #????????????????????????????? | | ?? ?? + + !""" #????????????????????????????? | | ?? # # ! """ #????????????????????????????? | | ?? # # #????????????????????????????? | | ######### #########????????????????????????????? | | # #???????????????????????????????????? | | # #???????????????????????????????????? | | """ + #???????????????????????????????????? | | """" # #???????????????????????????????????? | | """" ??# #???????????????????????????????????? | | """????### ###???????????????????????????????????? | | ????????#+#########?????????????????????????????? | | ?????????# !#?????????????????????????????? | | ?????????# #?????????????????????????????? | | ?????????# = #?????????????????????????????? | | ?????????# %== #?????????????????????????????? | | ?????????# *[%= #????########?????????????????? | | ?????????# " % #????#@!!!!!#?????????????????? | | ?????????# ="T" #????#!!!!!!#?????????????????? | | ?????????# """ #????#[ #?????????????????? | | ???????#######+##########%h #####?????????????? | | ???????# %| ]] ?????????? | | ???????# = ! ]] ????????? | | !! ]] ?????????? | | ###/######## !! """ ?????????? | | ? ? ?????# !! ""????????????? | | ??###### ?# """???# = ""????????????? | | ???????# ??# """ #?# ] ""????????????? | | ???????#???# """ #?#h u k ????????????? | | ???????????# """ +? k o w ???????????? | | ???????????# """???# [ ????????????? | | ???????????# ????# ##""T""##????????????? | | ???????????# ????#######?""""???????????????? | | ???????????# / ???????????????????????????????? | | ???????????#####+#???????????????????????????????? | | ???????????????? ???????????????????????????????? | | ???????????????? ???????????????????????????????? | | ???????????????? ???????????????????????????????? | | ?????????????????#???????????????????????????????? | | ?????????????????????????????????????????????????? | | ?????????????????????????????????????????????????? | | ?????????????????????????????????????????????????? | +----------------------------------------------------+ Best States ------------- Heat Dissipation 35 Energy Generation 12 Energy Capacity 265 Matter Stores 300 Matter Capacity 300 Sight Range 16 Terrain Scan Density 10 Armor Coverage 225 Evasion (%) 50 Recoil Reduction 4 Offensive Hacking 10 Item Schematics ----------------- Hacking Suite | -9/Materials | Scanalyzed Robot Schematics ------------------ None Fabricated ------------ Nothing Alien Tech Used ----------------- None Achievements -------------- None Challenges ------------ None Game ------ Seed PropulsionPhasingMultirail Manual? 0 Play Time 00:17:03 Cumulative 62.4 hours Start 2019.10.30 @ 09:40:26 End 2019.10.30 @ 09:57:03 Sessions 1 Manual Loads 0 Difficulty Rogue Special Mode None Game No. 97 Rogue 97 Adventurer 0 Explorer 0 Win Type - Total 0 Types 0/0/0/0/0/0/0 Lore% 27 Gallery% 38 Achievement% 29 Wizard Run 0 Options --------- ASCII 0 Keyboard 0 Movement Mouse Keybinds 0 Fullscreen 1 Font 18/SmallcapsGlow Map View 76x50 Tactical HUD 1 Map Filters NONE Filters NONE Steam 1 RUN: a5358b2a-e14c-4917-b021-2516a9cddaab